[Event "Early-Titled-Tuesday-Blitz-March-12-2024"]
[Site "Chess.com"]
[Date "2024.03.12"]
[Round "7"]
[White "DIMONBANAN"]
[Black "GeorgiosSouleidis"]
[Result "0-1"]
[WhiteElo "2529"]
[BlackElo "2668"]
[TimeControl "180+1"]
[EndTime "9:17:08 PDT"]
[Termination "GeorgiosSouleidis won by resignation"]

1. e4 {[%clk 0:03:00.4]} 1... c5 {[%clk 0:03:00]} 2. Nf3 {[%clk 0:02:56.9]} 2...
e6 {[%clk 0:03:00.4]} 3. d4 {[%clk 0:02:56.8]} 3... cxd4 {[%clk 0:03:01.3]} 4.
Nxd4 {[%clk 0:02:56.8]} 4... Nf6 {[%clk 0:03:01.7]} 5. Nc3 {[%clk 0:02:56.7]}
5... Nc6 {[%clk 0:03:02.2]} 6. Nxc6 {[%clk 0:02:55.5]} 6... bxc6 {[%clk
0:03:03.1]} 7. e5 {[%clk 0:02:56.2]} 7... Nd5 {[%clk 0:03:03.2]} 8. Nxd5 {[%clk
0:02:56.8]} 8... cxd5 {[%clk 0:03:04.1]} 9. Bd3 {[%clk 0:02:56.8]} 9... d6
{[%clk 0:03:04.4]} 10. Bf4 {[%clk 0:02:56.4]} 10... Be7 {[%clk 0:02:51.5]} 11.
O-O {[%clk 0:02:55.3]} 11... O-O {[%clk 0:02:50.6]} 12. Qh5 {[%clk 0:02:52.3]}
12... g6 {[%clk 0:02:49.4]} 13. Qf3 {[%clk 0:02:52.4]} 13... dxe5 {[%clk
0:02:20.1]} 14. Bxe5 {[%clk 0:02:52.4]} 14... f6 {[%clk 0:02:20.7]} 15. Bg3
{[%clk 0:02:49.9]} 15... e5 {[%clk 0:02:12.2]} 16. Rfd1 {[%clk 0:02:43.8]} 16...
Be6 {[%clk 0:02:02.9]} 17. Bc4 {[%clk 0:02:09.3]} 17... e4 {[%clk 0:01:31.4]}
18. Qe2 {[%clk 0:02:03.6]} 18... Qa5 {[%clk 0:01:20.4]} 19. Bb3 {[%clk
0:01:58.1]} 19... Rad8 {[%clk 0:01:05.7]} 20. a3 {[%clk 0:00:50.8]} 20... f5
{[%clk 0:00:57.5]} 21. Be5 {[%clk 0:00:50.9]} 21... Bf6 {[%clk 0:00:46.8]} 22.
Bxf6 {[%clk 0:00:50.6]} 22... Rxf6 {[%clk 0:00:47.7]} 23. Qe3 {[%clk 0:00:49.3]}
23... Qb6 {[%clk 0:00:45.3]} 24. Qxb6 {[%clk 0:00:45.9]} 24... axb6 {[%clk
0:00:45.5]} 25. Rd4 {[%clk 0:00:46.8]} 25... Rf7 {[%clk 0:00:29.6]} 26. Rad1
{[%clk 0:00:34.1]} 26... Rfd7 {[%clk 0:00:29.5]} 27. Kf1 {[%clk 0:00:32.5]}
27... Kf7 {[%clk 0:00:27.7]} 28. Ke1 {[%clk 0:00:32.7]} 28... Kf6 {[%clk
0:00:27.9]} 29. g3 {[%clk 0:00:18.9]} 29... g5 {[%clk 0:00:28]} 30. c4 {[%clk
0:00:17.8]} 30... dxc4 {[%clk 0:00:21.1]} 31. Rxd7 {[%clk 0:00:17.4]} 31... Rxd7
{[%clk 0:00:22]} 32. Rxd7 {[%clk 0:00:17.6]} 32... Bxd7 {[%clk 0:00:22.9]} 33.
Bxc4 {[%clk 0:00:18.3]} 33... Ke5 {[%clk 0:00:23.6]} 34. Kd2 {[%clk 0:00:18.6]}
34... Kd4 {[%clk 0:00:23.9]} 35. Bg8 {[%clk 0:00:18.2]} 35... h6 {[%clk
0:00:23.7]} 36. Bf7 {[%clk 0:00:17.8]} 36... f4 {[%clk 0:00:23.8]} 37. gxf4
{[%clk 0:00:16]} 37... gxf4 {[%clk 0:00:24.7]} 38. Bh5 {[%clk 0:00:10.7]} 38...
e3+ {[%clk 0:00:20.6]} 39. fxe3+ {[%clk 0:00:10.8]} 39... fxe3+ {[%clk
0:00:21.5]} 40. Ke1 {[%clk 0:00:11.2]} 40... Kd3 {[%clk 0:00:20.3]} 41. Bg6+
{[%clk 0:00:09.9]} 41... Kd4 {[%clk 0:00:19.4]} 42. Bc2 {[%clk 0:00:10.4]} 42...
Bg4 {[%clk 0:00:18.4]} 43. b4 {[%clk 0:00:06.6]} 43... Kc3 {[%clk 0:00:17.5]}
44. Bd1 {[%clk 0:00:01.6]} 44... Bxd1 {[%clk 0:00:17.2]} 45. Kxd1 {[%clk
0:00:02.5]} 45... Kb3 {[%clk 0:00:17.8]} 46. Ke2 {[%clk 0:00:03]} 46... Kxa3
{[%clk 0:00:18.4]} 47. Kxe3 {[%clk 0:00:03.8]} 47... Kxb4 {[%clk 0:00:19]} 48.
Kd2 {[%clk 0:00:03.9]} 48... Kb3 {[%clk 0:00:16.5]} 49. Kc1 {[%clk 0:00:04.4]}
49... b5 {[%clk 0:00:16.5]} 50. Kb1 {[%clk 0:00:04.8]} 50... b4 {[%clk
0:00:16.8]} 51. h3 {[%clk 0:00:03.6]} 51... Kc3 {[%clk 0:00:15]} 52. Kc1 {[%clk
0:00:03.5]} 52... b3 {[%clk 0:00:11.8]} 53. Kb1 {[%clk 0:00:04]} 53... b2 {[%clk
0:00:10.4]} 54. h4 {[%clk 0:00:01.1]} 54... h5 {[%clk 0:00:10.6]} 55. Ka2 {[%clk
0:00:01.7]} 55... Kc2 {[%clk 0:00:11.5]} 0-1

[Event "Early-Titled-Tuesday-Blitz-March-12-2024"]
[Site "Chess.com"]
[Date "2024.03.12"]
[Round "7"]
[White "temus_galaktionov"]
[Black "NMJeevanK"]
[Result "1-0"]
[WhiteElo "2865"]
[BlackElo "2584"]
[TimeControl "180+1"]
[EndTime "9:17:10 PDT"]
[Termination "temus_galaktionov won on time"]

1. d4 {[%clk 0:02:56.7]} 1... g6 {[%clk 0:02:58.7]} 2. Nf3 {[%clk 0:02:52.8]}
2... d6 {[%clk 0:02:57.7]} 3. c4 {[%clk 0:02:53.6]} 3... Bg7 {[%clk 0:02:57.5]}
4. Nc3 {[%clk 0:02:53.6]} 4... Nc6 {[%clk 0:02:58]} 5. d5 {[%clk 0:02:53.3]}
5... Ne5 {[%clk 0:02:58.7]} 6. Nxe5 {[%clk 0:02:53.3]} 6... Bxe5 {[%clk
0:02:59.6]} 7. e4 {[%clk 0:02:51.7]} 7... Nf6 {[%clk 0:03:00.1]} 8. Bd3 {[%clk
0:02:51.4]} 8... O-O {[%clk 0:03:00]} 9. f4 {[%clk 0:02:50.6]} 9... Bd4 {[%clk
0:02:47.1]} 10. Ne2 {[%clk 0:02:49.9]} 10... Bb6 {[%clk 0:02:44.3]} 11. h3
{[%clk 0:02:42.1]} 11... e6 {[%clk 0:02:41.9]} 12. Qc2 {[%clk 0:02:35.8]} 12...
exd5 {[%clk 0:02:39.7]} 13. cxd5 {[%clk 0:02:36.7]} 13... Re8 {[%clk 0:02:37.2]}
14. Bd2 {[%clk 0:02:36.8]} 14... Qe7 {[%clk 0:02:33.2]} 15. Ng3 {[%clk 0:02:32]}
15... Nxe4 {[%clk 0:02:04.1]} 16. Bxe4 {[%clk 0:02:22.7]} 16... Qh4 {[%clk
0:02:01.1]} 17. Qd3 {[%clk 0:01:59.6]} 17... f5 {[%clk 0:01:56.8]} 18. O-O-O
{[%clk 0:01:58.9]} 18... fxe4 {[%clk 0:01:56.6]} 19. Nxe4 {[%clk 0:01:59.8]}
19... Bf5 {[%clk 0:01:53]} 20. Rde1 {[%clk 0:01:57.6]} 20... Re7 {[%clk
0:01:48]} 21. g4 {[%clk 0:01:57.5]} 21... Bxe4 {[%clk 0:01:39.2]} 22. Rxe4
{[%clk 0:01:58.4]} 22... Rae8 {[%clk 0:01:39]} 23. Rhe1 {[%clk 0:01:54]} 23...
Rxe4 {[%clk 0:01:33.3]} 24. Rxe4 {[%clk 0:01:54.9]} 24... Re7 {[%clk 0:01:25.5]}
25. Qe2 {[%clk 0:01:50.7]} 25... Kf8 {[%clk 0:01:22.1]} 26. Rxe7 {[%clk
0:01:49.5]} 26... Qxe7 {[%clk 0:01:21.9]} 27. Qxe7+ {[%clk 0:01:49.8]} 27...
Kxe7 {[%clk 0:01:22.8]} 28. Kc2 {[%clk 0:01:50]} 28... Bd4 {[%clk 0:01:18.1]}
29. b3 {[%clk 0:01:49.7]} 29... h5 {[%clk 0:01:14.4]} 30. Kd3 {[%clk 0:01:49.9]}
30... hxg4 {[%clk 0:01:07.3]} 31. hxg4 {[%clk 0:01:50.8]} 31... Bb2 {[%clk
0:00:44.7]} 32. Ke4 {[%clk 0:01:50]} 32... c5 {[%clk 0:00:39.6]} 33. f5 {[%clk
0:01:49.4]} 33... gxf5+ {[%clk 0:00:39.2]} 34. Kxf5 {[%clk 0:01:50.3]} 34... b5
{[%clk 0:00:35.6]} 35. Bg5+ {[%clk 0:01:42.1]} 35... Kf7 {[%clk 0:00:35.1]} 36.
Ke4 {[%clk 0:01:39.9]} 36... Be5 {[%clk 0:00:31.6]} 37. Be3 {[%clk 0:01:37.3]}
37... Bg3 {[%clk 0:00:27.1]} 38. Kf5 {[%clk 0:01:34.9]} 38... a5 {[%clk
0:00:26.9]} 39. g5 {[%clk 0:01:33.9]} 39... a4 {[%clk 0:00:24.4]} 40. bxa4
{[%clk 0:01:32.3]} 40... bxa4 {[%clk 0:00:25.3]} 41. g6+ {[%clk 0:01:32.3]}
41... Kg7 {[%clk 0:00:22.4]} 42. Bd2 {[%clk 0:01:05.3]} 42... Be5 {[%clk
0:00:22.5]} 43. Be3 {[%clk 0:01:05.3]} 43... c4 {[%clk 0:00:22.4]} 44. Bg5
{[%clk 0:00:58.9]} 44... c3 {[%clk 0:00:19.9]} 45. Be3 {[%clk 0:00:58.9]} 45...
c2 {[%clk 0:00:19.9]} 46. Bc1 {[%clk 0:00:58.8]} 46... Bc3 {[%clk 0:00:11.5]}
47. Ke4 {[%clk 0:00:58.5]} 47... Kxg6 {[%clk 0:00:11.2]} 48. Kd3 {[%clk
0:00:59]} 48... Bb4 {[%clk 0:00:10.3]} 49. Kxc2 {[%clk 0:00:59.3]} 49... Kf5
{[%clk 0:00:08.9]} 50. Kd3 {[%clk 0:00:59.9]} 50... Bc5 {[%clk 0:00:09]} 51. Kc4
{[%clk 0:00:59.1]} 51... a3 {[%clk 0:00:08.4]} 52. Kb5 {[%clk 0:00:38.1]} 52...
Ke5 {[%clk 0:00:04]} 53. Kc6 {[%clk 0:00:38]} 53... Kf6 {[%clk 0:00:04]} 54. Bf4
{[%clk 0:00:37.7]} 54... Ke7 {[%clk 0:00:04.6]} 55. Bg5+ {[%clk 0:00:37.2]}
55... Kf7 {[%clk 0:00:05.1]} 56. Kd7 {[%clk 0:00:37.2]} 56... Kg6 {[%clk
0:00:03.8]} 57. Bf4 {[%clk 0:00:36.9]} 57... Kf5 {[%clk 0:00:04.3]} 58. Bxd6
{[%clk 0:00:37]} 58... Ke4 {[%clk 0:00:04.2]} 59. Kc6 {[%clk 0:00:32.9]} 59...
Bd4 {[%clk 0:00:03.2]} 60. Bxa3 {[%clk 0:00:32.3]} 60... Bf6 {[%clk 0:00:03.5]}
61. Bc5 {[%clk 0:00:31.1]} 61... Kd3 {[%clk 0:00:02.9]} 62. a4 {[%clk
0:00:30.8]} 62... Kc4 {[%clk 0:00:03.4]} 63. a5 {[%clk 0:00:30.8]} 63... Bd8
{[%clk 0:00:03.5]} 64. a6 {[%clk 0:00:31.1]} 1-0

[Event "Early-Titled-Tuesday-Blitz-March-12-2024"]
[Site "Chess.com"]
[Date "2024.03.12"]
[Round "7"]
[White "ASKA538"]
[Black "Al_Shima"]
[Result "0-1"]
[WhiteElo "2256"]
[BlackElo "2440"]
[TimeControl "180+1"]
[EndTime "9:17:10 PDT"]
[Termination "Al_Shima won by resignation"]

1. e4 {[%clk 0:03:00.9]} 1... c6 {[%clk 0:02:56.8]} 2. Nf3 {[%clk 0:03:00.4]}
2... d5 {[%clk 0:02:57.7]} 3. Nc3 {[%clk 0:02:59.6]} 3... dxe4 {[%clk
0:02:58.6]} 4. Nxe4 {[%clk 0:02:59.2]} 4... Nf6 {[%clk 0:02:59.1]} 5. Qe2 {[%clk
0:02:59]} 5... Nxe4 {[%clk 0:02:59.1]} 6. Qxe4 {[%clk 0:02:59.9]} 6... Nd7
{[%clk 0:02:59.7]} 7. Bc4 {[%clk 0:02:59.5]} 7... Nf6 {[%clk 0:03:00.2]} 8. Ne5
{[%clk 0:02:59.2]} 8... e6 {[%clk 0:03:00.7]} 9. Qe2 {[%clk 0:02:59.5]} 9... b5
{[%clk 0:03:00.3]} 10. Nxc6 {[%clk 0:02:58.5]} 10... Qc7 {[%clk 0:02:59.1]} 11.
Bxb5 {[%clk 0:02:58.7]} 11... a6 {[%clk 0:02:59.2]} 12. Ba4 {[%clk 0:02:52.1]}
12... Bd7 {[%clk 0:02:58.6]} 13. Qc4 {[%clk 0:02:52.6]} 13... Rc8 {[%clk
0:02:55.4]} 14. Qxa6 {[%clk 0:02:51]} 14... Bxc6 {[%clk 0:02:54.6]} 15. Bxc6+
{[%clk 0:02:49.6]} 15... Qxc6 {[%clk 0:02:55.5]} 16. Qxc6+ {[%clk 0:02:50.2]}
16... Rxc6 {[%clk 0:02:56.4]} 17. c3 {[%clk 0:02:49.8]} 17... Bd6 {[%clk
0:02:55.9]} 18. d4 {[%clk 0:02:48.3]} 18... O-O {[%clk 0:02:54.7]} 19. Be3
{[%clk 0:02:47.6]} 19... Nd5 {[%clk 0:02:54.6]} 20. Kd2 {[%clk 0:02:46.2]} 20...
Rb8 {[%clk 0:02:54.2]} 21. Rhb1 {[%clk 0:02:42.5]} 21... f5 {[%clk 0:02:54.1]}
22. g3 {[%clk 0:02:36.2]} 22... h6 {[%clk 0:02:32.6]} 23. Kd3 {[%clk 0:02:29.6]}
23... f4 {[%clk 0:02:14.8]} 24. Bd2 {[%clk 0:02:28]} 24... fxg3 {[%clk
0:02:10.1]} 25. fxg3 {[%clk 0:02:27.1]} 25... Nb6 {[%clk 0:02:06.5]} 26. b4
{[%clk 0:02:19.9]} 26... Nc4 {[%clk 0:02:05.3]} 27. b5 {[%clk 0:02:14]} 27...
Rc7 {[%clk 0:02:03.5]} 28. a4 {[%clk 0:02:13.7]} 28... Na5 {[%clk 0:01:28.9]}
29. Bf4 {[%clk 0:01:47.4]} 29... Bxf4 {[%clk 0:01:06]} 30. gxf4 {[%clk
0:01:48.3]} 30... Rbc8 {[%clk 0:01:06.4]} 31. Ra3 {[%clk 0:01:43.7]} 31... Kf7
{[%clk 0:00:38.2]} 32. b6 {[%clk 0:01:43.2]} 32... Rb7 {[%clk 0:00:37.5]} 33.
Rb5 {[%clk 0:01:42.6]} 33... Nc4 {[%clk 0:00:28.3]} 34. Rab3 {[%clk 0:01:42.3]}
34... Nd6 {[%clk 0:00:23.8]} 35. Rc5 {[%clk 0:01:38.4]} 35... Ra8 {[%clk
0:00:17.9]} 36. a5 {[%clk 0:01:33.2]} 36... Ke7 {[%clk 0:00:17.4]} 37. c4 {[%clk
0:01:19.7]} 37... Ra6 {[%clk 0:00:10.5]} 38. Rb1 {[%clk 0:00:57.8]} 38... Rd7
{[%clk 0:00:08.6]} 39. Re5 {[%clk 0:00:47.2]} 39... Nb7 {[%clk 0:00:06.2]} 40.
d5 {[%clk 0:00:35.4]} 40... Nc5+ {[%clk 0:00:02.7]} 41. Kd4 {[%clk 0:00:34]}
41... Rxa5 {[%clk 0:00:03.2]} 42. b7 {[%clk 0:00:32]} 42... Rxb7 {[%clk
0:00:02.7]} 43. Rxb7+ {[%clk 0:00:30.5]} 43... Nxb7 {[%clk 0:00:03.6]} 44. Rxe6+
{[%clk 0:00:30.8]} 44... Kf7 {[%clk 0:00:04]} 45. Rb6 {[%clk 0:00:29.6]} 45...
Nc5 {[%clk 0:00:03.9]} 46. Rb5 {[%clk 0:00:28.6]} 46... Rxb5 {[%clk 0:00:04]}
47. cxb5 {[%clk 0:00:29.4]} 47... Nd7 {[%clk 0:00:04.5]} 48. Ke4 {[%clk
0:00:24.6]} 48... Ke7 {[%clk 0:00:04.9]} 49. Kf5 {[%clk 0:00:24.3]} 49... Kf7
{[%clk 0:00:05]} 50. d6 {[%clk 0:00:24]} 50... g6+ {[%clk 0:00:05.3]} 51. Ke4
{[%clk 0:00:22.8]} 51... Ke6 {[%clk 0:00:05.8]} 52. f5+ {[%clk 0:00:22.4]} 52...
gxf5+ {[%clk 0:00:05.4]} 53. Kf4 {[%clk 0:00:22.9]} 53... Nf6 {[%clk 0:00:03.8]}
54. b6 {[%clk 0:00:22.4]} 54... Nd5+ {[%clk 0:00:03.9]} 55. Kg3 {[%clk
0:00:22.9]} 55... Nxb6 {[%clk 0:00:04.8]} 56. h4 {[%clk 0:00:22.5]} 56... Kxd6
{[%clk 0:00:04]} 0-1

[Event "Early-Titled-Tuesday-Blitz-March-12-2024"]
[Site "Chess.com"]
[Date "2024.03.12"]
[Round "7"]
[White "Witik"]
[Black "Grandelicious"]
[Result "0-1"]
[WhiteElo "2747"]
[BlackElo "2879"]
[TimeControl "180+1"]
[EndTime "9:17:15 PDT"]
[Termination "Grandelicious won by resignation"]

1. d4 {[%clk 0:02:59.5]} 1... Nf6 {[%clk 0:02:59.8]} 2. c4 {[%clk 0:03:00]} 2...
g6 {[%clk 0:03:00.5]} 3. g3 {[%clk 0:02:54.8]} 3... Bg7 {[%clk 0:03:00.4]} 4.
Bg2 {[%clk 0:02:54.9]} 4... O-O {[%clk 0:03:01.1]} 5. Nc3 {[%clk 0:02:55.3]}
5... d6 {[%clk 0:03:01.8]} 6. Nf3 {[%clk 0:02:55.4]} 6... c6 {[%clk 0:03:01.3]}
7. O-O {[%clk 0:02:55.2]} 7... Nbd7 {[%clk 0:03:02]} 8. e4 {[%clk 0:02:54]} 8...
e5 {[%clk 0:03:02.3]} 9. h3 {[%clk 0:02:54.1]} 9... Qa5 {[%clk 0:03:02.3]} 10.
Be3 {[%clk 0:02:44.7]} 10... Nb6 {[%clk 0:02:56]} 11. Qe2 {[%clk 0:01:42.9]}
11... exd4 {[%clk 0:02:45.3]} 12. Bxd4 {[%clk 0:01:23.9]} 12... Re8 {[%clk
0:02:41.1]} 13. Nd2 {[%clk 0:01:11.7]} 13... Be6 {[%clk 0:01:57.1]} 14. Rfc1
{[%clk 0:01:03.8]} 14... Qa6 {[%clk 0:01:46.5]} 15. Bf1 {[%clk 0:00:36.4]} 15...
Rad8 {[%clk 0:01:29.7]} 16. Qf3 {[%clk 0:00:33.2]} 16... Nbd7 {[%clk 0:01:25.5]}
17. c5 {[%clk 0:00:31.4]} 17... Qa5 {[%clk 0:01:25.4]} 18. cxd6 {[%clk
0:00:30.8]} 18... Ne5 {[%clk 0:01:22.7]} 19. Qe3 {[%clk 0:00:22.5]} 19... Rxd6
{[%clk 0:01:19.3]} 20. Nb3 {[%clk 0:00:18.7]} 20... Bxb3 {[%clk 0:01:12.9]} 21.
axb3 {[%clk 0:00:19.6]} 21... Qd8 {[%clk 0:01:12.5]} 22. Bxa7 {[%clk 0:00:17.9]}
22... Nd3 {[%clk 0:00:28.4]} 23. Rd1 {[%clk 0:00:18]} 23... Nxb2 {[%clk
0:00:24.9]} 24. Rxd6 {[%clk 0:00:18]} 24... Qxd6 {[%clk 0:00:25.3]} 25. Bd4
{[%clk 0:00:15.3]} 25... Ng4 {[%clk 0:00:21]} 26. hxg4 {[%clk 0:00:09.1]} 26...
Bxd4 {[%clk 0:00:21.7]} 27. Qf3 {[%clk 0:00:09.2]} 27... Qe5 {[%clk 0:00:17.7]}
28. Rc1 {[%clk 0:00:09.2]} 28... Ra8 {[%clk 0:00:15.6]} 29. Kg2 {[%clk 0:00:09]}
29... Ra3 {[%clk 0:00:15.7]} 30. Ne2 {[%clk 0:00:08.9]} 30... c5 {[%clk
0:00:12.6]} 31. Nf4 {[%clk 0:00:09.1]} 31... Ra6 {[%clk 0:00:08.5]} 32. Nd5
{[%clk 0:00:09.4]} 32... Kg7 {[%clk 0:00:09.1]} 33. Qe2 {[%clk 0:00:07.9]} 33...
Re6 {[%clk 0:00:08.5]} 34. f3 {[%clk 0:00:05]} 34... Qg5 {[%clk 0:00:08.1]} 35.
Rc2 {[%clk 0:00:05]} 35... h5 {[%clk 0:00:06.7]} 36. Rxb2 {[%clk 0:00:03.4]}
36... Bxb2 {[%clk 0:00:04.4]} 37. Qxb2+ {[%clk 0:00:03.7]} 37... Kg8 {[%clk
0:00:05.1]} 38. e5 {[%clk 0:00:02.5]} 38... Qxe5 {[%clk 0:00:05.1]} 39. Qxe5
{[%clk 0:00:02.5]} 39... Rxe5 {[%clk 0:00:06]} 40. gxh5 {[%clk 0:00:03]} 40...
Rxd5 {[%clk 0:00:06.3]} 41. hxg6 {[%clk 0:00:03.3]} 41... Rd2+ {[%clk
0:00:06.5]} 42. Kh3 {[%clk 0:00:03.9]} 42... fxg6 {[%clk 0:00:07.1]} 43. Kg4
{[%clk 0:00:04.3]} 43... Kg7 {[%clk 0:00:07.2]} 44. Bc4 {[%clk 0:00:04.9]} 44...
Rd4+ {[%clk 0:00:07.1]} 45. Kg5 {[%clk 0:00:05.2]} 45... Rd6 {[%clk 0:00:04.8]}
46. f4 {[%clk 0:00:04.6]} 46... Rb6 {[%clk 0:00:05.1]} 47. g4 {[%clk 0:00:04.9]}
47... Rb4 {[%clk 0:00:05.5]} 48. f5 {[%clk 0:00:04.8]} 48... gxf5 {[%clk
0:00:06.4]} 49. gxf5 {[%clk 0:00:04.7]} 49... b5 {[%clk 0:00:07.3]} 50. f6+
{[%clk 0:00:05.4]} 50... Kf8 {[%clk 0:00:07.4]} 51. Bd5 {[%clk 0:00:06.1]} 51...
Rd4 {[%clk 0:00:07.3]} 52. Bc6 {[%clk 0:00:05.7]} 52... c4 {[%clk 0:00:05.6]}
53. bxc4 {[%clk 0:00:05.4]} 53... bxc4 {[%clk 0:00:06.5]} 54. Ba4 {[%clk
0:00:05.5]} 54... c3 {[%clk 0:00:06.8]} 55. Bb3 {[%clk 0:00:04.4]} 55... Rd2
{[%clk 0:00:07.7]} 0-1

[Event "Early-Titled-Tuesday-Blitz-March-12-2024"]
[Site "Chess.com"]
[Date "2024.03.12"]
[Round "7"]
[White "Roman_Ovetchkin"]
[Black "AlexeiShirov"]
[Result "0-1"]
[WhiteElo "2587"]
[BlackElo "2870"]
[TimeControl "180+1"]
[EndTime "9:17:17 PDT"]
[Termination "AlexeiShirov won on time"]

1. d4 {[%clk 0:02:12.9]} 1... d5 {[%clk 0:02:59.9]} 2. c4 {[%clk 0:02:12.6]}
2... c6 {[%clk 0:03:00.1]} 3. Nf3 {[%clk 0:02:11.8]} 3... Nf6 {[%clk 0:03:00.2]}
4. Nc3 {[%clk 0:02:11.2]} 4... e6 {[%clk 0:03:00.2]} 5. cxd5 {[%clk 0:02:07.2]}
5... exd5 {[%clk 0:02:59.4]} 6. Qc2 {[%clk 0:02:07.4]} 6... Na6 {[%clk
0:02:43.3]} 7. a3 {[%clk 0:02:04]} 7... Nc7 {[%clk 0:02:34.6]} 8. Bg5 {[%clk
0:02:03.4]} 8... Ne6 {[%clk 0:02:33.3]} 9. Bh4 {[%clk 0:02:01.9]} 9... Be7
{[%clk 0:02:31.9]} 10. e3 {[%clk 0:02:01.7]} 10... O-O {[%clk 0:02:22.3]} 11.
Bd3 {[%clk 0:01:59.3]} 11... g6 {[%clk 0:02:19.2]} 12. h3 {[%clk 0:01:39.1]}
12... Nh5 {[%clk 0:02:17.9]} 13. g4 {[%clk 0:01:04.5]} 13... Bxh4 {[%clk
0:02:11]} 14. gxh5 {[%clk 0:01:03.7]} 14... Bf6 {[%clk 0:01:55.7]} 15. O-O-O
{[%clk 0:01:01.4]} 15... Kh8 {[%clk 0:01:46]} 16. Rhg1 {[%clk 0:00:54.5]} 16...
Rg8 {[%clk 0:01:42.4]} 17. h4 {[%clk 0:00:51.8]} 17... Bd7 {[%clk 0:01:40.4]}
18. hxg6 {[%clk 0:00:51.5]} 18... hxg6 {[%clk 0:01:33.5]} 19. h5 {[%clk
0:00:51.2]} 19... g5 {[%clk 0:01:33.4]} 20. h6 {[%clk 0:00:50.3]} 20... Qe7
{[%clk 0:01:26.8]} 21. Bf5 {[%clk 0:00:48.9]} 21... Rae8 {[%clk 0:01:19.2]} 22.
Kb1 {[%clk 0:00:47]} 22... Nf8 {[%clk 0:01:16.9]} 23. Ne2 {[%clk 0:00:29.5]}
23... Bxf5 {[%clk 0:01:09.5]} 24. Qxf5 {[%clk 0:00:30.4]} 24... Qe4+ {[%clk
0:01:05.3]} 25. Qxe4 {[%clk 0:00:30.5]} 25... Rxe4 {[%clk 0:01:05.1]} 26. Ng3
{[%clk 0:00:29.8]} 26... Re6 {[%clk 0:01:04.2]} 27. Nh2 {[%clk 0:00:28.1]} 27...
Nh7 {[%clk 0:01:01]} 28. Ng4 {[%clk 0:00:27.7]} 28... Bd8 {[%clk 0:00:59.9]} 29.
Nf5 {[%clk 0:00:24.8]} 29... Bc7 {[%clk 0:00:55.6]} 30. f3 {[%clk 0:00:22.5]}
30... Nf6 {[%clk 0:00:53.4]} 31. Nxf6 {[%clk 0:00:22.3]} 31... Rxf6 {[%clk
0:00:53.4]} 32. e4 {[%clk 0:00:22.8]} 32... Bf4 {[%clk 0:00:50.4]} 33. Rg4
{[%clk 0:00:22.8]} 33... Re8 {[%clk 0:00:45.7]} 34. Ng7 {[%clk 0:00:21.6]} 34...
Re7 {[%clk 0:00:44.2]} 35. e5 {[%clk 0:00:21.3]} 35... Rg6 {[%clk 0:00:36.6]}
36. Nf5 {[%clk 0:00:20.5]} 36... Ree6 {[%clk 0:00:35.5]} 37. Rdg1 {[%clk
0:00:19.5]} 37... Kh7 {[%clk 0:00:35.1]} 38. Kc2 {[%clk 0:00:18.2]} 38... f6
{[%clk 0:00:33.1]} 39. Ng7 {[%clk 0:00:18.2]} 39... Re7 {[%clk 0:00:29]} 40. e6
{[%clk 0:00:15.3]} 40... f5 {[%clk 0:00:24.9]} 41. Nxf5 {[%clk 0:00:15]} 41...
Rexe6 {[%clk 0:00:24.8]} 42. Kb3 {[%clk 0:00:13]} 42... Ref6 {[%clk 0:00:21.1]}
43. Ne7 {[%clk 0:00:11.1]} 43... Rxh6 {[%clk 0:00:20.7]} 44. Re1 {[%clk
0:00:10.2]} 44... Rh3 {[%clk 0:00:20.3]} 45. Ka2 {[%clk 0:00:08.3]} 45... Rxf3
{[%clk 0:00:19.8]} 46. Rg2 {[%clk 0:00:05.5]} 46... Kg7 {[%clk 0:00:19.6]} 47.
Rge2 {[%clk 0:00:05.3]} 47... Kf7 {[%clk 0:00:19.3]} 48. Nc8 {[%clk 0:00:05]}
48... g4 {[%clk 0:00:19]} 49. Re7+ {[%clk 0:00:04.7]} 49... Kg6 {[%clk 0:00:19]}
50. Rxb7 {[%clk 0:00:05.3]} 50... g3 {[%clk 0:00:18.5]} 51. Ne7+ {[%clk
0:00:05.9]} 51... Kg5 {[%clk 0:00:17.9]} 52. Re2 {[%clk 0:00:05.4]} 52... Rf7
{[%clk 0:00:17.4]} 53. Re6 {[%clk 0:00:04.1]} 53... Rf6 {[%clk 0:00:15.8]} 54.
Rxf6 {[%clk 0:00:02.3]} 54... Kxf6 {[%clk 0:00:15.3]} 55. Ng8+ {[%clk
0:00:02.5]} 55... Kg6 {[%clk 0:00:14.7]} 56. Ne7+ {[%clk 0:00:02]} 56... Kg5
{[%clk 0:00:14.3]} 57. Nxc6 {[%clk 0:00:01.3]} 57... Be3 {[%clk 0:00:13.4]} 0-1